bitfinex/quotes_ETHUSD_20251118
["timestamp","ask_amount","ask_price","bid_price","bid_amount"]
[1763440926992,0.002,2999.6,2999.3,0.405504]
[1763440927180,0.002,2999.8,2999.5,0.875304]
[1763440927388,0.002,2999.8,2999.7,3.25998465]
[1763440927701,0.291,2999.8,2999.7,3.25998465]
[1763440927863,0.291,2999.8,2999.7,3.71978465]
[1763440928067,0.291,2999.8,2999.7,3.22645912]
[1763440928271,0.291,2999.8,2999.5,1.78814164]
[1763440928502,0.291,2999.8,2999.3,1.78814164]
[1763440929307,0.291,2999.8,2999.4,0.405504]
[1763440929599,0.002,2999.8,2999.7,0.405504]
[1763440929930,0.291,2999.8,2999.7,0.405504]
[1763440930348,0.291,2999.8,2999.4,1.78814164]
[1763440930642,0.6991,2999.8,2999.3,1.78814164]
[1763440930812,0.6991,2999.8,2999.0,0.20352838]
[1763440930813,0.03334333,2999.7,2999.0,0.20352838]
[1763440931014,0.50774333,2999.7,2999.0,0.20352838]
[1763440931418,0.4744,2999.7,2999.0,0.20352838]
[1763440931819,0.4744,2999.7,2999.1,0.405504]
[1763440933441,0.291,2999.8,2999.6,0.4698]
[1763440933442,0.002,2999.8,2999.6,0.4698]
[1763440933643,0.289,2999.7,2999.6,0.405504]
[1763440933800,0.289,2999.7,2999.4,1.78814164]
[1763440934143,0.289,2999.7,2999.3,1.78814164]
[1763440934144,0.764,2999.7,2999.3,1.78814164]
[1763440934353,0.289,2999.7,2999.3,1.78814164]
[1763440934508,0.002,2999.8,2999.7,0.405504]
[1763440934701,0.291,2999.8,2999.7,0.405504]
[1763440935132,0.291,2999.8,2999.5,1.78814164]
[1763440935133,1.1735,2999.8,2999.5,1.78814164]
[1763440935332,2.41,2999.7,2999.4,1.78814164]
[1763440935834,2.41,2999.7,2999.1,0.001]
[1763440935835,2.41,2999.7,2999.5,1.78814164]
[1763440936157,1.205,2999.7,2999.5,1.78814164]
[1763440936341,0.8831,2999.6,2999.4,1.78814164]
[1763440936643,0.8831,2999.6,2999.1,0.001]
[1763440936644,0.8831,2999.6,2999.3,1.78814164]
[1763440936815,0.8825,2999.6,2999.3,1.78814164]
[1763440937200,0.291,2999.8,2999.1,0.001]
[1763440937201,0.4744,2999.4,2999.1,0.001]
[1763440937633,0.8831,2999.4,2999.3,1.79818981]
[1763440937938,0.4744,2999.4,2999.3,1.79818981]
[1763440938250,0.4744,2999.4,2999.1,0.001]
[1763440938453,0.4744,2999.4,2999.1,2.38568065]
[1763440938657,0.002,2999.8,2999.2,0.405504]
[1763440938832,0.289,2999.7,2999.5,1.80069448]
[1763440939030,1.31509264,2999.6,2999.1,0.001]
[1763440939233,0.4041,2999.2,2999.1,0.001]
[1763440939744,0.8716,2999.2,2999.1,0.001]
[1763440940267,1.77859264,2999.2,2999.1,0.001]
[1763440940951,0.8716,2999.2,2999.1,0.001]
[1763440941154,1.77859264,2999.2,2999.1,0.001]
[1763440941364,1.81193597,2999.2,2999.1,0.001]
[1763440941732,2.10093597,2999.2,2999.1,0.001]
[1763440941934,2.10093597,2999.2,2998.6,0.001]
[1763440941935,0.0155,2999.0,2998.6,0.001]
[1763440942190,0.0155,2999.0,2998.5,0.001]
[1763440942191,0.90699264,2998.6,2998.5,0.001]
[1763440942471,0.90699264,2998.6,2998.0,0.001]
[1763440942472,2.00029195,2998.6,2998.0,0.001]
[1763440942768,0.90699264,2998.0,2997.8,0.001]
[1763440942973,0.8835,2997.9,2997.8,0.001]
[1763440943167,1.3503,2997.9,2997.8,0.001]
[1763440943536,0.1937,2998.2,2997.8,0.001]
[1763440943855,0.4675,2998.8,2998.2,0.405504]
[1763440944067,0.6612,2998.8,2998.4,2.20619848]
[1763440944270,0.289,2998.7,2998.6,0.405504]
[1763440944432,0.1937,2999.3,2998.6,0.405504]
[1763440944639,0.289,2999.2,2999.0,2.20091658]
[1763440944931,0.289,2999.1,2999.0,2.42100824]
[1763440945370,3.60599264,2999.1,2999.0,2.42100824]
[1763440945547,4.07349264,2999.1,2999.0,1.79541258]
[1763440945745,0.90699264,2999.1,2998.9,2.20091658]
[1763440945957,0.002,2999.8,2999.1,0.405504]
[1763440946157,0.4675,2999.6,2999.2,1.7952336]
[1763440946471,0.002,2999.8,2999.3,2.2007376]
[1763440946670,0.289,2999.7,2999.3,2.2007376]
[1763440946833,0.7565,2999.7,2999.3,2.2007376]
[1763440947370,0.7565,2999.7,2999.4,1.7952336]
[1763440947670,0.4675,2999.6,2999.3,2.2007376]
[1763440947970,0.289,2999.7,2999.3,2.2007376]
[1763440948142,0.4675,2999.6,2999.3,1.7952336]
[1763440948347,0.4008,2999.4,2999.2,1.7952336]
[1763440948569,0.4675,2999.6,2999.2,1.7952336]
[1763440948570,0.4008,2999.3,2999.2,1.7952336]
[1763440948869,0.4008,2999.3,2998.9,1.7952336]
[1763440949036,0.289,2999.2,2999.0,1.7952336]
[1763440949235,0.4746,2999.1,2998.8,1.7952336]
[1763440949677,0.1227,2998.9,2998.8,1.7952336]
[1763440950571,0.289,2999.2,2998.8,1.79582422]
[1763440950752,0.7565,2999.2,2998.8,1.79582422]
[1763440951272,0.4675,2999.1,2998.8,1.79582422]
[1763440952901,0.4027,2998.9,2998.8,1.79582422]
[1763440953179,0.4027,2998.9,2998.3,1.79582422]
[1763440953381,0.1939,2998.6,2998.3,1.79582422]
[1763440953553,0.289,2998.5,2998.3,1.79582422]
[1763440954178,0.289,2998.4,2998.3,2.20132822]
[1763440954478,0.289,2998.4,2998.3,0.405504]
[1763440955382,2.699,2998.4,2998.3,0.405504]
[1763440955772,0.002,2999.3,2998.4,0.405504]
[1763440955956,1.205,2999.2,2999.1,0.405504]
[1763440956284,0.289,2999.2,2999.1,1.078404]
[1763440957188,0.289,2999.2,2999.1,3.47198238]
[1763440957375,0.002,2999.3,2999.1,1.89160224]
[1763440957577,0.002,2999.3,2999.2,3.78316896]
[1763440957779,0.291,2999.3,2999.2,0.405504]
[1763440958590,0.291,2999.3,2999.1,2.39502274]
[1763440958752,0.7483,2999.3,2998.9,2.39502274]
[1763440958959,0.7483,2999.3,2998.8,2.39502274]
[1763440959184,0.7483,2999.3,2999.0,1.79735654]
[1763440959494,0.4763,2999.1,2999.0,1.79735654]
[1763440959903,0.291,2999.3,2999.1,0.405504]
[1763440960103,0.291,2999.3,2999.2,2.20308686]
[1763440960709,0.44462778,2999.7,2999.2,2.20308686]
[1763440960862,0.002,2999.8,2999.2,2.20308686]
[1763440961856,0.289,2999.7,2999.3,1.79758286]
[1763440962619,0.4763,2999.4,2999.3,1.79758286]
[1763440962769,0.289,2999.7,2999.3,1.79758286]
[1763440962973,0.3775,2999.4,2999.3,1.79758286]
[1763440963358,0.834,2999.4,2999.3,1.79758286]
[1763440964007,0.289,2999.7,2999.3,0.22030869]
[1763440964162,0.289,2999.7,2999.5,1.79794646]
[1763440964691,0.835,2999.6,2999.5,1.79794646]
[1763440965260,3.245,2999.6,2999.5,1.79794646]
[1763440965456,0.90699264,2999.5,2999.2,2.80052674]
[1763440965663,0.90699264,2999.5,2999.2,3.08057941]
[1763440965859,1.494,2999.4,2999.2,3.08057941]
[1763440966964,0.289,2999.4,2999.2,2.80052674]
[1763440967995,0.289,2999.4,2999.2,0.405504]
[1763440968399,0.291,2999.4,2999.2,0.405504]
[1763440968791,0.834,2999.3,2999.1,2.39502274]
[1763440968964,0.0046,2999.2,2998.8,2.39502274]
[1763440969160,0.0046,2999.2,2998.0,4.19977358]
[1763440969161,0.0046,2999.2,2999.0,1.79850357]
[1763440969364,0.0046,2999.2,2998.9,1.79850357]
[1763440969793,0.373,2999.0,2998.9,1.79850357]
[1763440970106,0.373,2999.0,2998.1,3.17914087]
[1763440970107,0.373,2999.0,2998.7,1.79850357]
[1763440970269,0.0082,2998.5,2998.1,1.79850357]
[1763440970596,0.0082,2998.5,2998.0,0.001]
[1763440970597,0.288,2998.4,2998.0,1.79950357]
[1763440970804,0.3693,2998.1,2998.0,1.79950357]
[1763440971101,0.3693,2998.1,2998.0,0.001]
[1763440971481,0.4573,2998.3,2998.0,0.001]
[1763440971898,0.1988,2998.9,2998.0,0.001]
[1763440972212,0.7453,2998.8,2998.2,1.79850357]
[1763440972590,0.3775,2998.3,2998.1,1.79850357]
[1763440972787,0.48984333,2998.7,2998.0,0.001]
[1763440972788,0.0046,2998.1,2998.0,0.001]
[1763440973418,0.288,2998.2,2998.0,0.001]
[1763440973977,0.288,2998.2,2998.1,1.79850357]
[1763440974215,0.1988,2998.9,2998.0,1.79950357]
[1763440974418,0.7453,2998.8,2998.2,1.79850357]
[1763440975006,0.288,2998.7,2998.2,1.79850357]
[1763440975318,3.31699264,2998.6,2998.2,1.79850357]
[1763440975631,0.3775,2998.3,2998.0,0.001]
[1763440975938,0.0046,2998.1,2998.0,0.001]
[1763440977105,0.834,2998.1,2998.0,0.001]
[1763440977480,0.6561,2998.9,2998.0,0.4843]
[1763440977723,0.289,2998.8,2998.0,0.4843]
[1763440978022,0.288,2998.7,2998.1,0.1896]
[1763440978377,0.288,2998.7,2998.1,1.79850357]
[1763440979221,0.288,2998.7,2998.0,0.001]
[1763440979222,0.7453,2998.7,2998.0,1.79950357]
[1763440979623,0.03334333,2998.6,2998.0,0.001]
[1763440980131,0.49064333,2998.6,2998.0,0.001]
[1763440980286,0.4573,2998.6,2998.0,0.001]
[1763440980689,0.4573,2999.6,2998.5,0.4833]
[1763440980886,0.289,2999.3,2998.8,0.4833]
[1763440981093,0.289,2999.3,2998.7,1.79850357]
[1763440982834,0.002,2999.9,2999.3,0.4833]
[1763440982993,0.002,3000.1,3000.0,0.405504]
[1763440983192,0.29,3000.1,3000.0,3.2814575]
[1763440983445,0.29,3000.1,3000.0,1.68294975]
[1763440983596,0.29,3000.1,3000.0,1.354804]
[1763440983933,1.1042,3000.1,3000.0,2.39247074]
[1763440984105,1.1042,3000.1,2999.4,1.79456309]
[1763440984303,1.1042,3000.1,2998.7,3.16129123]
[1763440984304,0.5521,2999.5,2999.1,1.79456309]
[1763440984514,0.0069,2999.3,2998.6,1.79456309]
[1763440984718,0.0069,2999.3,2998.6,1.9740194]
[1763440984928,0.0069,2999.3,2998.1,0.1896]
[1763440984929,0.4642,2999.3,2998.4,1.79456309]
[1763440985093,0.49754333,2999.3,2998.2,1.79456309]
[1763440985294,3.31699264,2999.2,2998.2,1.79456309]
[1763440985522,0.4573,2999.1,2998.2,1.79456309]
[1763440985825,0.1338,2999.0,2998.1,0.1961]
[1763440986012,0.16714333,2999.0,2998.1,1.99066309]
[1763440986214,0.6317,2999.0,2998.0,1.79556309]
[1763440986428,0.6317,2999.0,2998.0,2.0202294]
[1763440986625,0.4979,2998.9,2998.0,1.79556309]
[1763440986817,0.288,2998.8,2998.0,1.79556309]
[1763440987141,0.90699264,2998.2,2998.0,0.001]
[1763440987343,0.288,2998.1,2998.0,0.001]
[1763440988004,0.4979,2998.7,2998.0,0.001]
[1763440988005,0.4979,2998.7,2998.0,1.79556309]
[1763440988204,0.32134333,2998.6,2998.0,0.001]
[1763440988757,0.288,2998.6,2998.0,0.22120671]
[1763440989043,0.288,2998.6,2998.0,2.0157698]
[1763440989232,0.03334333,2998.5,2998.0,0.001]
[1763440989404,0.7859,2998.6,2998.0,0.001]
[1763440989606,0.4979,2998.5,2998.0,0.001]
[1763440990345,6.69493039,2999.0,2998.0,0.001]
[1763440990346,0.1338,2999.0,2998.0,0.001]
[1763440990656,0.7859,2998.9,2998.1,0.1961]
[1763440990809,0.7859,2998.9,2998.1,0.43581671]
[1763440991212,0.4979,2998.9,2998.1,0.43581671]
[1763440991429,0.1338,2999.0,2998.2,1.79456309]
[1763440991430,0.288,2998.8,2998.2,1.79456309]
[1763440991636,0.288,2998.8,2998.3,0.25639021]
[1763440991818,0.288,2998.7,2998.6,1.79456309]
[1763440992022,0.288,2998.7,2998.6,0.855604]
[1763440993924,0.002,2999.7,2998.6,0.88895289]
[1763440994127,0.288,2999.6,2999.1,1.79499676]
[1763440994644,0.288,2999.6,2999.1,1.99109676]
[1763440994821,0.288,2999.6,2999.2,0.19910968]
[1763440995217,3.31699264,2999.5,2999.2,0.19910968]
[1763440995466,0.288,2999.6,2999.4,1.79499676]
[1763440995642,0.288,2999.6,2999.4,0.405504]
[1763440995833,0.288,2999.6,2999.5,0.88894288]
[1763440996031,0.288,2999.6,2999.5,0.855604]
[1763440996359,0.288,2999.6,2999.5,3.24893302]
[1763440996523,0.288,2999.6,2999.5,0.855604]
[1763440997046,0.288,2999.6,2999.5,3.24830491]
[1763440997240,0.288,2999.6,2999.5,0.73033449]
[1763440997431,0.288,2999.6,2999.5,1.18043449]
[1763440997628,0.288,2999.6,2999.5,0.32483049]
[1763440998354,0.288,2999.6,2999.3,0.405504]
[1763440998560,0.288,2999.6,2999.4,0.4501]
[1763440998932,0.002,2999.7,2999.5,2.83154379]
[1763440999257,0.288,2999.6,2999.5,0.405504]
[1763440999462,0.288,2999.6,2999.5,0.79254249]
[1763440999959,0.288,2999.6,2999.5,1.28264249]
[1763441000521,0.288,2999.6,2999.3,2.98144087]
[1763441000726,0.288,2999.6,2999.2,1.79179012]
[1763441000952,0.288,2999.6,2999.3,0.4901]
[1763441001229,0.288,2999.6,2999.3,0.24803901]
[1763441001442,0.288,2999.6,2999.2,1.79179012]
[1763441001627,0.288,2999.6,2999.1,1.79179012]
[1763441001832,0.03334333,2999.5,2998.9,1.79179012]
[1763441002074,0.7705,2999.6,2998.9,1.79179012]
[1763441002228,0.7705,2999.6,2999.0,1.82513456]
[1763441002229,0.288,2999.6,2999.0,1.82513456]
[1763441002428,0.288,2999.6,2999.1,1.79179012]
[1763441002628,0.288,2999.6,2999.2,0.405504]
[1763441003254,0.288,2999.6,2999.1,1.95596435]
[1763441003255,0.288,2999.6,2999.1,0.1985]
[1763441003471,0.7705,2999.6,2998.8,0.405504]
[1763441003775,0.7705,2999.6,2998.8,0.64435107]
[1763441004133,0.288,2999.6,2998.8,0.64435107]
[1763441004646,0.288,2999.6,2998.7,0.405504]
[1763441004844,0.288,2999.6,2999.3,1.19492976]
[1763441005277,3.31699264,2999.5,2999.4,1.19492976]
[1763441005566,3.31699264,2999.5,2999.3,1.19492976]
[1763441005775,3.31699264,2999.5,2999.4,1.19492976]
[1763441005963,3.31699264,2999.5,2999.3,1.19492976]
[1763441006130,0.90699264,2999.5,2999.3,1.19492976]
[1763441006337,0.90699264,2999.5,2999.4,1.19492976]
[1763441006545,0.90699264,2999.5,2999.2,0.405504]
[1763441006771,0.90699264,2999.5,2999.2,0.895604]
[1763441007153,0.90699264,2999.5,2999.2,0.405504]
[1763441007669,0.90699264,2999.5,2999.2,0.895604]
[1763441007995,0.03334333,2999.4,2998.9,2.38847069]
[1763441008175,1.38949264,2999.5,2999.2,1.19586421]
[1763441008494,1.38949264,2999.5,2998.2,7.18021445]
[1763441008495,0.51584333,2999.4,2999.1,1.19586421]
[1763441008785,0.4825,2999.4,2998.9,1.19586421]
[1763441008969,0.03334333,2999.3,2998.9,1.19586421]
[1763441009173,0.3409,2999.0,2998.6,1.19586421]
[1763441009470,0.288,2998.9,2998.7,1.19586421]
[1763441009672,0.4851,2998.9,2998.7,1.19586421]
[1763441010001,0.288,2998.9,2998.7,1.19586421]
[1763441010153,0.461,2998.8,2998.7,1.19586421]
[1763441010694,0.288,2998.9,2998.7,1.19668329]
[1763441010993,0.4854,2998.9,2998.7,1.19660856]
[1763441012167,0.288,2998.9,2998.8,0.900004]
[1763441012785,0.288,2998.9,2998.8,1.27786147]
[1763441012975,0.288,2998.9,2998.8,0.78336147]
[1763441013179,0.288,2998.9,2998.8,0.405504]
[1763441013701,0.288,2998.9,2998.8,3.81192136]
[1763441013900,0.288,2998.9,2998.8,1.390104]
[1763441014589,0.288,2998.9,2998.8,1.42345067]
[1763441014767,0.002,2999.7,2998.9,0.405504]
[1763441014963,0.002,2999.7,2999.6,1.098504]
[1763441015214,0.002,2999.7,2999.6,0.405504]
[1763441015411,0.002,2999.7,2999.4,2.39352014]
[1763441015412,1.207,2999.7,2999.4,2.39352014]
[1763441015608,0.002,2999.7,2999.3,2.39352014]
[1763441015764,0.4825,2999.6,2999.1,0.405504]
[1763441015964,0.288,2999.5,2999.1,0.405504]
[1763441016165,0.288,2999.5,2999.1,0.588504]
[1763441017205,0.288,2999.5,2999.1,2.98202414]
[1763441017415,0.288,2999.5,2999.1,3.46472414]
[1763441017631,0.288,2999.5,2999.2,0.51604222]
[1763441017768,0.288,2999.5,2999.2,0.4827]
[1763441017965,0.288,2999.5,2999.1,2.98202414]
[1763441019005,0.4923,2999.4,2998.8,2.39352014]
[1763441019171,0.4923,2999.4,2998.9,2.79902414]
[1763441019567,0.288,2999.5,2998.9,2.79902414]
[1763441019784,0.288,2999.5,2999.0,0.001]
[1763441020303,0.288,2999.5,2999.4,0.4714]
[1763441020471,0.288,2999.5,2999.4,0.876904]
[1763441020676,0.288,2999.5,2999.4,3.75312414]
[1763441020875,0.288,2999.5,2999.4,3.27042414]
[1763441021494,0.288,2999.5,2999.4,2.79902414]
[1763441021811,0.288,2999.5,2999.4,3.27042414]
[1763441022174,0.288,2999.5,2999.4,3.75312414]
[1763441022373,0.288,2999.5,2999.4,3.27042414]
[1763441023418,0.288,2999.5,2999.4,2.79902414]
[1763441025413,0.288,2999.5,2999.2,2.39352014]
[1763441025610,1.114,2999.5,2999.2,2.39352014]
[1763441025974,0.0036,2999.3,2999.1,2.39352014]
[1763441026179,0.334,2999.2,2999.0,2.39452014]
[1763441027101,0.0049,2999.1,2999.0,2.39452014]
[1763441027280,0.0049,2999.1,2999.0,0.001]
[1763441027281,0.4972,2999.1,2999.0,0.001]
[1763441027976,0.0049,2999.1,2999.0,0.001]
[1763441029201,0.4923,2999.4,2999.0,0.001]
[1763441029400,0.4923,2999.4,2999.3,1.80161266]
[1763441029593,0.7803,2999.4,2999.3,1.80161266]
[1763441029980,1.1143,2999.4,2999.3,1.80161266]
[1763441030180,1.1143,2999.4,2999.0,2.39452014]
[1763441030412,0.622,2999.4,2999.0,2.39452014]
[1763441031376,0.622,2999.4,2999.1,0.405504]
[1763441031377,0.288,2999.4,2999.1,0.405504]
[1763441031603,0.288,2999.4,2999.1,3.30257695]
[1763441031909,0.288,2999.4,2999.2,2.39352014]
[1763441032308,0.4705,2999.3,2999.2,2.39352014]
[1763441032709,0.288,2999.4,2999.2,2.39352014]
[1763441033691,0.8247,2999.3,2999.2,2.39352014]
[1763441033891,0.8247,2999.3,2999.0,2.39452014]
[1763441034919,0.4705,2999.1,2999.0,0.001]
[1763441035310,4.14299264,2999.1,2999.0,0.001]
[1763441036698,2.93799264,2999.1,2999.0,0.001]
[1763441037439,2.58249264,2999.1,2999.0,0.001]
[1763441037723,2.93799264,2999.1,2999.0,0.001]
[1763441037902,2.11199264,2999.1,2999.0,0.001]
[1763441038103,2.58139264,2999.1,2999.0,0.001]
[1763441039124,0.1929,2998.8,2998.5,0.001]
[1763441039340,0.3385,2998.5,2997.8,0.001]
[1763441039487,1.24549264,2998.1,2997.8,0.001]
[1763441039687,1.53349264,2998.1,2997.8,0.001]
[1763441039885,2.02419264,2998.1,2997.8,0.001]
[1763441040788,2.05753597,2998.1,2997.8,0.001]
[1763441040990,2.02419264,2998.1,2997.8,0.001]
[1763441041442,0.3385,2998.1,2997.8,0.001]
[1763441041725,8.2993566,2998.1,2997.8,0.001]
[1763441043848,0.90699264,2998.1,2997.8,0.001]
[1763441044062,0.1929,2998.8,2998.1,0.405504]
[1763441044360,0.288,2998.7,2998.1,0.183]
[1763441045260,2.41,2998.6,2998.1,0.183]
[1763441045430,2.41,2998.6,2998.1,0.48130241]
[1763441046257,0.90699264,2998.5,2998.0,0.001]
[1763441046938,3.31699264,2998.6,2998.0,0.001]
[1763441048164,2.11199264,2998.6,2998.1,0.1931]
[1763441048655,2.11199264,2998.6,2998.1,0.6719]
[1763441049157,0.90699264,2998.6,2998.2,0.405504]
[1763441049346,0.90699264,2998.6,2998.0,0.001]
[1763441049658,0.90699264,2998.6,2998.0,0.28110241]
[1763441049659,0.4646,2998.5,2998.0,0.28110241]
[1763441049961,0.90699264,2998.6,2998.0,0.28110241]
[1763441050728,0.90699264,2998.7,2998.1,0.1931]
[1763441050922,0.288,2998.6,2998.1,0.1931]
[1763441051347,1.09989264,2998.9,2998.0,0.28110241]
[1763441051538,0.7526,2998.8,2998.0,0.28110241]
[1763441052634,0.288,2998.7,2998.0,0.28110241]
[1763441053675,1.84487934,2999.9,2998.6,0.4693]
[1763441053676,6.27516396,2999.5,2998.6,0.4693]
[1763441053992,0.288,2999.3,2998.6,0.405504]
[1763441054342,0.90699264,2999.0,2998.3,2.39352014]
[1763441054556,0.288,2998.9,2998.3,0.405504]
[1763441054729,0.9418,2998.9,2998.2,0.405504]
[1763441055058,0.9418,2998.9,2998.1,2.58662014]
[1763441055059,0.9418,2998.9,2998.1,0.405504]
[1763441055279,0.90699264,2998.7,2998.1,0.405504]
[1763441055685,0.90699264,2998.7,2998.0,0.001]
[1763441055686,0.3695,2998.2,2998.0,0.001]
[1763441055896,0.3695,2998.2,2996.9,2.39352014]
[1763441055897,0.78594333,2998.1,2996.9,2.39352014]
[1763441056058,0.78594333,2998.1,2995.9,2.39352014]
[1763441056059,0.90699264,2997.2,2995.9,2.39352014]
[1763441056404,0.90699264,2996.6,2995.7,0.4788]
[1763441056562,0.90699264,2996.2,2995.5,0.1948]
[1763441056749,0.32134333,2996.1,2995.2,0.4788]
[1763441056951,0.32134333,2996.1,2995.0,0.001]
[1763441056952,0.90699264,2995.8,2995.0,0.001]
[1763441057284,0.78594333,2996.1,2995.0,0.001]
[1763441057285,0.1892,2995.3,2995.0,0.001]
[1763441057487,0.288,2995.2,2995.0,0.001]
[1763441058187,0.7526,2995.2,2995.0,0.001]
[1763441058720,0.288,2995.1,2995.0,0.001]
[1763441060388,0.288,2995.1,2995.0,0.4614]
[1763441060575,0.288,2995.1,2995.0,0.001]
[1763441060781,0.7508,2995.1,2995.0,0.001]
[1763441061478,1.201,2995.1,2995.0,0.001]
[1763441062335,1.201,2995.1,2994.7,0.001]
[1763441062615,7.4037566,2994.8,2994.7,0.001]
[1763441062978,7.8539566,2994.8,2994.7,0.001]
[1763441064377,7.1821566,2994.8,2994.7,0.001]
[1763441064597,0.90699264,2994.8,2994.7,0.001]
[1763441065117,8.0951566,2994.8,2994.7,0.001]
[1763441065320,10.5071566,2994.8,2994.7,0.001]
[1763441066009,8.0951566,2994.8,2994.7,0.001]
[1763441066333,0.4628,2994.2,2992.8,0.1944]
[1763441066548,1.71849957,2994.7,2992.4,0.4843]
[1763441066549,7.4150566,2993.9,2992.6,0.1944]
[1763441066691,0.90699264,2992.9,2992.4,0.4843]
[1763441066889,0.288,2992.8,2992.3,0.1944]
[1763441067216,0.288,2992.8,2991.6,0.4843]
[1763441067217,0.90699264,2992.5,2991.6,0.4843]
[1763441067416,0.90699264,2992.5,2991.0,1.06945959]
[1763441067417,0.90699264,2992.0,2991.0,0.1944]
[1763441067719,0.90699264,2991.6,2991.0,0.1944]
[1763441067893,0.288,2991.5,2991.0,0.1944]
[1763441070201,0.90699264,2991.2,2990.5,0.4843]
[1763441070421,0.90699264,2990.8,2990.0,0.6787]
[1763441070588,0.288,2990.7,2990.0,0.6787]
[1763441070991,0.288,2990.7,2990.1,0.4843]
[1763441071728,0.288,2990.6,2990.2,0.03344257]
[1763441071924,0.288,2990.6,2988.2,1.98449295]
[1763441071925,0.6787,2989.9,2988.2,1.98449295]
[1763441072195,0.289,2989.8,2988.2,1.74657588]
[1763441072395,0.289,2989.8,2988.3,0.03346384]
[1763441072629,6.60229772,2989.3,2988.0,0.1944]
[1763441072931,0.90699264,2989.2,2988.1,0.51776608]
[1763441073134,0.289,2989.1,2988.1,0.4843]
[1763441073489,0.03334333,2989.0,2988.1,0.4843]
[1763441073834,0.289,2989.1,2988.1,0.4843]
[1763441074150,0.90699264,2988.7,2987.0,0.1944]
[1763441074291,0.32234333,2988.6,2987.1,0.4843]
[1763441074491,0.90699264,2988.3,2987.1,0.4843]
[1763441075437,1.496,2988.2,2987.1,0.4843]
[1763441075820,1.496,2988.2,2987.2,0.405504]
[1763441076121,0.03334333,2988.1,2987.3,0.4764]
[1763441076342,0.289,2988.2,2987.3,0.4764]
[1763441076507,0.90699264,2988.3,2987.3,0.4764]
[1763441076708,0.289,2988.2,2987.4,0.405504]
[1763441076915,0.90699264,2988.3,2988.2,0.1885]
[1763441077125,0.1819,2989.7,2988.3,0.405504]
[1763441077309,0.289,2989.6,2988.3,0.881904]
[1763441077646,0.32234333,2989.5,2988.5,0.405504]
[1763441077996,0.32234333,2989.4,2988.6,0.4764]
[1763441078350,6.60229772,2989.3,2988.3,0.881904]
[1763441078701,0.289,2989.4,2988.1,0.1885]
[1763441078702,6.60229772,2988.8,2988.1,0.1885]
[1763441078895,0.90699264,2988.2,2987.1,0.4764]
[1763441079241,0.90699264,2988.2,2987.2,0.4764]
[1763441079242,0.289,2988.1,2987.2,0.4764]
[1763441079543,0.72437977,2988.1,2987.2,0.4764]
[1763441079699,0.289,2988.1,2987.2,0.4764]
[1763441079903,0.289,2988.0,2987.2,0.4764]
[1763441080116,0.289,2988.0,2987.3,0.405504]
[1763441080432,0.289,2988.0,2987.5,0.405504]
[1763441080802,6.60229772,2988.8,2987.0,0.1944]
[1763441080803,6.60229772,2989.3,2987.7,0.405504]
[1763441081001,0.1819,2991.8,2987.9,0.405504]
[1763441081002,0.4862,2989.6,2987.9,0.405504]
[1763441081207,0.4862,2989.6,2987.6,0.4764]
[1763441081208,0.32234333,2989.5,2987.6,0.4764]
[1763441081525,6.60229772,2989.3,2987.8,0.405504]
[1763441081729,0.7752,2989.5,2987.8,0.405504]
[1763441081927,0.7752,2989.5,2987.0,0.1944]
[1763441081928,0.4862,2989.4,2988.0,0.405504]
[1763441082253,0.32234333,2989.3,2988.0,0.405504]
[1763441082414,0.289,2989.3,2988.2,0.405504]
[1763441082816,0.51954333,2989.2,2988.2,0.405504]
[1763441083057,1.42653597,2989.2,2988.1,0.1885]
[1763441083257,1.42653597,2989.2,2987.0,0.1944]
[1763441083258,0.90699264,2988.7,2987.3,0.4764]
[1763441083429,0.32234333,2988.6,2987.3,0.4764]
[1763441083843,0.80854333,2988.6,2987.3,0.4764]
[1763441084043,0.4862,2988.8,2987.3,0.4764]
[1763441084248,0.03334333,2988.6,2987.4,0.405504]
[1763441084448,0.03334333,2988.6,2986.8,0.4764]
[1763441084449,0.90699264,2988.2,2986.8,0.4764]
[1763441084653,0.4862,2988.5,2985.5,0.4764]
[1763441084654,0.90699264,2987.6,2985.5,0.4764]
[1763441084824,0.90699264,2987.6,2985.0,0.87673184]
[1763441084825,0.90699264,2986.8,2985.3,0.1885]
[1763441085024,0.90699264,2986.8,2985.7,0.4764]
[1763441085224,0.61073528,2987.5,2984.8,0.87713314]
[1763441085225,0.90699264,2986.6,2984.8,0.87713314]
[1763441085458,0.4862,2986.5,2985.0,0.03350083]
[1763441085657,0.4862,2986.5,2984.8,0.87713314]
[1763441085833,0.90699264,2986.6,2985.6,0.56723496]
[1763441086234,0.289,2986.7,2985.6,0.09083496]
[1763441086436,0.289,2986.7,2985.7,0.4764]
[1763441086640,0.1664,2987.5,2985.8,0.43899586]
[1763441086842,0.289,2987.4,2985.8,0.43899586]
[1763441087051,0.289,2987.3,2986.0,0.405504]
[1763441087255,0.289,2987.3,2986.2,0.405504]
[1763441087761,0.4862,2987.2,2985.6,0.56723496]
[1763441088260,0.4862,2987.2,2985.8,0.405504]
[1763441088461,0.4862,2987.2,2985.6,0.56723496]
[1763441088863,0.4862,2987.2,2985.6,0.09083496]
[1763441089164,0.289,2987.1,2985.7,0.03349298]
[1763441089465,0.289,2987.1,2985.8,0.43899586]
[1763441089674,0.289,2987.1,2985.8,0.405504]
[1763441089841,0.289,2987.1,2986.0,0.405504]
[1763441090041,0.289,2987.1,2987.0,0.594004]
[1763441090468,0.289,2987.1,2987.0,1.070404]